fUST/lending_fUST_20240118
["ID","MTS","AMOUNT","RATE_DAILY","PERIOD"]
[312058665,1705588247742,-154.95351395,0.0004,4]
[312058666,1705588247751,-1919.56123507,0.0004,4]
[312058667,1705588247760,-738.12683061,0.0004,2]
[312058668,1705588247769,-5000.0,0.0004,2]
[312058669,1705588247778,-719.46157424,0.0004,2]
[312058670,1705588247787,-8893.38699722,0.0004,15]
[312058671,1705588247796,-301.91589292,0.0004,2]
[312058672,1705588247806,-2716.84535538,0.0004,2]
[312058673,1705588247815,-16207.55387816,0.0004,10]
[312058674,1705588247824,-168.22710666,0.0004,2]
[312058675,1705588247833,-154.95351395,0.0004,4]
[312058676,1705588247842,-290.0,0.0004,4]
[312058677,1705588247851,-1000.0,0.0004,40]
[312058678,1705588247861,-1816.62824705,0.0004,30]
[312058679,1705588247870,-207.983961,0.0004,2]
[312058680,1705588247880,-202.690515,0.0004,2]
[312058681,1705588247889,-2000.0,0.0004,32]
[312058682,1705588247898,-245.30014,0.0004,2]
[312058683,1705588247908,-247.97068663,0.0004,120]
[312058684,1705588247917,-151.0,0.0004,2]
[312058685,1705588247926,-2000.0,0.0004001,32]
[312058686,1705588247936,-2126.637763,0.0004002,32]
[312058687,1705588247945,-200.0,0.000401,4]
[312058688,1705588247954,-151.0,0.00040138,21]
[312058689,1705588247964,-151.0,0.00040423,21]
[312058690,1705588247975,-3343.45086557,0.000407,2]
[312058691,1705588247984,-151.0,0.00040709,21]
[312058692,1705588247993,-155.0,0.0004074,2]
[312058693,1705588248002,-207.983961,0.00040822,2]
[312058694,1705588248011,-202.690515,0.00040822,2]
[312058695,1705588248020,-245.30014,0.00040822,2]
[312058696,1705588248029,-1500.0,0.00040904,7]
[312058697,1705588248037,-12705.23352118,0.00040968,2]
[312058698,1705588248048,-12705.23352118,0.00040969,2]
[312058699,1705588248057,-12755.23352118,0.00040981,2]
[312058700,1705588248066,-12755.23352118,0.00040985,2]
[312058701,1705588248075,-12755.23352118,0.0004099,2]
[312058702,1705588248084,-151.0,0.00040994,21]
[312058703,1705588248093,-12705.23352118,0.00040997,2]
[312058704,1705588248102,-12705.23352118,0.00040998,2]
[312058705,1705588248111,-12755.23352118,0.00040999,2]
[312058706,1705588248120,-257.01724397,0.00041,15]
[312058707,1705588248129,-4336.59802954,0.00041,10]
[312058708,1705588248142,-198.52508774,0.00041,5]
[312058709,1705588248151,-1000.0,0.00041,41]
[312058710,1705588248160,-3439.5497676,0.00041,15]
[312058711,1705588248169,-10000.0,0.00041,15]
[312058712,1705588248178,-10000.0,0.00041,15]
[312058713,1705588248188,-16847.81526802,0.00041,15]
[312058714,1705588248196,-2643.96960089,0.00041,15]
[312058715,1705588248206,-615.64947851,0.00041,15]
[312058716,1705588248215,-351.0,0.00041079,14]
[312058717,1705588248224,-176.383568,0.00041096,2]
[312058718,1705588248233,-35331.163784,0.00041096,15]
[312058719,1705588248243,-1220.1106198,0.00041096,7]
[312058720,1705588248252,-151.0,0.0004128,21]
[312058721,1705588248262,-5000.0,0.0004138,2]
[312058722,1705588248271,-5000.0,0.0004138,2]
[312058723,1705588248279,-5000.0,0.00041381,2]
[312058724,1705588248288,-5000.0,0.00041382,2]
[312058725,1705588248297,-5000.0,0.00041383,2]
[312058726,1705588248308,-5000.0,0.00041389,2]
[312058727,1705588248326,-5000.0,0.00041395,2]
[312058728,1705588248342,-5000.0,0.00041396,2]
[312058729,1705588248351,-5000.0,0.00041397,2]
[312058730,1705588248360,-5000.0,0.00041398,2]
[312058731,1705588248369,-5000.0,0.00041398,2]
[312058732,1705588248378,-471.0,0.000414,30]
[312058733,1705588248387,-5000.0,0.000414,2]
[312058734,1705588248396,-4999.98,0.00041401,2]
[312058735,1705588248405,-5000.0,0.00041402,2]
[312058736,1705588248414,-5000.0,0.00041406,2]
[312058737,1705588248423,-5000.0,0.00041407,2]
[312058738,1705588248434,-2494.5741,0.00041407,7]
[312058739,1705588248443,-2494.5741,0.00041407,7]
[312058740,1705588248452,-5000.0,0.00041409,2]
[312058741,1705588248461,-244.442505,0.00041409,7]
[312058742,1705588248470,-218.821974,0.00041411,7]
[312058743,1705588248479,-5000.0,0.00041411,2]
[312058744,1705588248488,-5000.0,0.00041411,2]
[312058745,1705588248497,-150.98490151,0.00041413,2]
[312058746,1705588248506,-5000.0,0.00041415,2]
[312058747,1705588248515,-5000.0,0.00041415,2]
[312058748,1705588248524,-5000.0,0.00041416,2]
[312058749,1705588248533,-153.756851,0.00041417,7]
[312058750,1705588248603,-5000.0,0.00041417,2]
[312058751,1705588248613,-5000.0,0.00041417,2]
[312058752,1705588248623,-5000.0,0.00041418,2]
[312058753,1705588248632,-5000.0,0.00041419,2]
[312058754,1705588248641,-4068.52,0.00041419,2]
[312058755,1705588248650,-5000.0,0.00041421,2]
[312058756,1705588248660,-5000.0,0.00041422,2]
[312058757,1705588248669,-5000.0,0.00041424,2]
[312058758,1705588248678,-5000.0,0.00041424,2]
[312058759,1705588248688,-151.0,0.00041424,7]
[312058760,1705588248697,-1171.501337,0.00041424,7]
[312058761,1705588248706,-1171.501337,0.00041424,7]
[312058762,1705588248715,-151.0,0.00041424,7]
[312058763,1705588248724,-351.0,0.00041425,90]
[312058764,1705588248733,-5000.0,0.00041428,2]
[312058765,1705588248743,-418.571,0.00041441,30]
[312058766,1705588248752,-777.0,0.000415,4]
[312058767,1705588248761,-1612.398478,0.00041553,120]
[312058768,1705588248770,-151.0,0.00041565,21]
[312058769,1705588248779,-2570.0,0.00041589,14]
[312058770,1705588248788,-4070.0,0.00041589,14]
[312058771,1705588248798,-207.983961,0.00041644,2]
[312058772,1705588248807,-202.690515,0.00041644,2]
[312058773,1705588248816,-245.30014,0.00041644,2]
[312058774,1705588248826,-26670.94637237,0.00041999,7]
[312058775,1705588248941,-10202.84952288,0.00041999,7]
[312058776,1705588248953,-608.88135017,0.00041999,7]
[312058777,1705588249175,-8153.31217651,0.00017809,2]
[312058778,1705588249188,-3010.8588495,0.00017809,2]
[312058779,1705588251442,-9723.50291957,0.00017809,2]
[312058780,1705588251452,-164.53558271,0.00017811,2]
[312058781,1705588251461,-1265.92,0.00037534,2]
[312058782,1705588251470,-1265.92,0.00037808,2]
[312058783,1705588251479,-1265.92,0.00038082,2]
[312058784,1705588251490,-200.0,0.00038182,15]
[312058785,1705588251500,-200.0,0.00038182,15]
[312058786,1705588251509,-200.0,0.00038182,15]
[312058787,1705588251518,-200.0,0.00038182,15]
[312058788,1705588251527,-200.0,0.00038182,15]
[312058789,1705588251537,-200.0,0.00038182,15]
[312058790,1705588251545,-1265.92,0.00038356,2]
[312058791,1705588251555,-1265.92,0.0003863,2]
[312058792,1705588251564,-1265.92,0.00038904,2]
[312058793,1705588251573,-1266.1595595,0.00039178,2]
[312058794,1705588251582,-10103.28631407,0.00041999,7]
[312058795,1705588251595,-3323.51551675,0.00041999,7]
[312058796,1705588252189,-7838.38957304,0.00030748,2]
[312058797,1705588252199,-738.6029313,0.00030998,4]
[312058798,1705588252208,-155.2031483,0.00030998,4]
[312058799,1705588252217,-500.0,0.00030999,2]
[312058800,1705588252227,-500.0,0.00030999,2]
[312058801,1705588252236,-247.19157656,0.00030999,2]
[312058802,1705588252246,-500.0,0.00030999,2]
[312058803,1705588252255,-500.0,0.00030999,2]
[312058804,1705588252265,-500.0,0.00030999,2]
[312058805,1705588252274,-500.0,0.00030999,2]
[312058806,1705588252283,-500.0,0.00030999,2]
[312058807,1705588252292,-597.3043788,0.00030999,2]
[312058808,1705588252301,-500.0,0.00030999,2]
[312058809,1705588252310,-500.0,0.00030999,2]
[312058810,1705588252319,-500.0,0.00030999,2]
[312058811,1705588252329,-500.0,0.00030999,2]
[312058812,1705588252338,-500.0,0.00030999,2]
[312058813,1705588252347,-590.40868196,0.00030999,2]
[312058814,1705588252356,-500.0,0.00030999,2]
[312058815,1705588252365,-500.0,0.00030999,2]
[312058816,1705588252374,-500.0,0.00030999,2]
[312058817,1705588252383,-500.0,0.00030999,2]
[312058818,1705588252392,-500.0,0.00030999,2]
[312058819,1705588252400,-500.0,0.00030999,2]
[312058820,1705588252409,-500.0,0.00030999,2]
[312058821,1705588252417,-626.78296725,0.00030999,2]
[312058822,1705588252426,-500.0,0.00030999,2]
[312058823,1705588252435,-500.0,0.00030999,2]
[312058824,1705588252445,-500.0,0.00030999,2]
[312058825,1705588252454,-500.0,0.00030999,2]
[312058826,1705588252463,-500.0,0.00030999,2]
[312058827,1705588252472,-500.0,0.00032876,7]
[312058828,1705588252480,-500.0,0.00032876,7]
[312058829,1705588252489,-500.0,0.00032876,7]
[312058830,1705588252498,-185.39368242,0.00032876,7]
[312058831,1705588252507,-500.0,0.00032876,7]
[312058832,1705588252516,-500.0,0.00032876,7]
[312058833,1705588252524,-500.0,0.00032876,7]
[312058834,1705588252533,-500.0,0.00032876,7]
[312058835,1705588252542,-500.0,0.00032876,7]
[312058836,1705588252551,-500.0,0.00032876,7]
[312058837,1705588252560,-197.9782841,0.00032876,7]
[312058838,1705588252571,-345.08722544,0.00032876,7]
[312058839,1705588252580,-192.80651147,0.00032876,7]
[312058840,1705588252589,-500.0,0.00032876,7]
[312058841,1705588252598,-500.0,0.00032876,7]
[312058842,1705588252607,-500.0,0.00032876,7]
[312058843,1705588252617,-500.0,0.00032876,7]
[312058844,1705588252626,-500.0,0.00032876,7]
[312058845,1705588252635,-500.0,0.00032876,7]
[312058846,1705588252644,-500.0,0.00032876,7]
[312058847,1705588252653,-500.0,0.00032876,7]
[312058848,1705588252662,-500.0,0.00032876,7]
[312058849,1705588252671,-500.0,0.00032876,7]
[312058850,1705588252680,-500.0,0.00032876,7]
[312058851,1705588252691,-200.0,0.00038182,15]
[312058852,1705588252700,-308.0,0.00038182,15]
[312058853,1705588252709,-199089.52092376,0.00041999,7]
[312058854,1705588252719,-2000.0,0.00042,6]
[312058855,1705588252728,-1997.57686568,0.00042,2]
[312058856,1705588252738,-1062.62617522,0.00042,120]
[312058857,1705588252747,-1000.0,0.00042,42]
[312058858,1705588252756,-200.0,0.00042,30]
[312058859,1705588252765,-1817.70882,0.00042041,2]
[312058860,1705588252774,-344.44574922,0.00042095,30]
[312058861,1705588252783,-500.0,0.00042095,30]
[312058862,1705588252791,-567.99095909,0.00042095,30]
[312058863,1705588252800,-500.0,0.00042095,30]
[312058864,1705588252809,-466.71540177,0.00042095,30]
[312058865,1705588252818,-500.0,0.00042095,30]
[312058866,1705588252827,-500.0,0.00042095,30]
[312058867,1705588252836,-500.0,0.00042095,30]
[312058868,1705588252845,-500.0,0.00042095,30]
[312058869,1705588252854,-500.0,0.00042095,30]
[312058870,1705588252863,-500.0,0.00042095,30]
[312058871,1705588252873,-500.0,0.00042095,30]
[312058872,1705588252882,-500.0,0.00042095,30]
[312058873,1705588252891,-500.0,0.00042095,30]
[312058874,1705588252900,-500.0,0.00042095,30]
[312058875,1705588252909,-500.0,0.00042095,30]
[312058876,1705588252919,-322.6266258,0.00042095,30]
[312058877,1705588252929,-500.0,0.00042095,30]
[312058878,1705588252939,-500.0,0.00042095,30]
[312058879,1705588252949,-246.35796993,0.00042095,30]
[312058880,1705588252958,-500.0,0.00042095,30]
[312058881,1705588252972,-500.0,0.00042095,30]
[312058882,1705588252987,-500.0,0.00042095,30]
[312058883,1705588252997,-409.87810533,0.00042095,30]
[312058885,1705588253006,-500.0,0.00042095,30]
[312058887,1705588253017,-500.0,0.00042095,30]
[312058889,1705588253027,-500.0,0.00042095,30]
[312058891,1705588253037,-500.0,0.00042095,30]
[312058892,1705588253046,-500.0,0.00042095,30]
[312058893,1705588253059,-500.0,0.00042095,30]
[312058894,1705588253069,-500.0,0.00042095,30]
[312058895,1705588253078,-500.0,0.00042095,30]
[312058896,1705588253087,-500.0,0.00042095,30]
[312058897,1705588253096,-500.0,0.00042095,30]
[312058898,1705588253105,-500.0,0.00042095,30]
[312058899,1705588253114,-500.0,0.00042095,30]
[312058900,1705588253124,-500.0,0.00042095,30]
[312058901,1705588253134,-500.0,0.00042095,30]
[312058902,1705588253144,-500.0,0.00042095,30]
[312058903,1705588253154,-500.0,0.00042095,30]
[312058904,1705588253215,-500.0,0.00042095,30]
[312058905,1705588253225,-500.0,0.00042095,30]
[312058906,1705588253235,-500.0,0.00042095,30]
[312058907,1705588253244,-291.12016931,0.00042095,30]
[312058908,1705588253670,-3539.04699591,0.00017277,2]
[312058909,1705588253762,-72.2254489,0.00017277,2]
[312058910,1705588254414,-5076.26502134,0.00017633,2]
[312058911,1705588254473,-103.59724533,0.00017633,2]
[312058912,1705588302470,-12000.0,0.00017633,2]
[312058913,1705588302674,-12000.0,0.00017633,2]
[312058914,1705588302892,-12000.0,0.00017633,2]
[312058915,1705588303022,-12000.0,0.00017633,2]
[312058916,1705588303062,-12000.0,0.00017633,2]
[312058917,1705588303175,-7120.84909923,0.00017633,2]
[312058918,1705588715648,-354.00861759,0.00017797,2]
[312058919,1705588715788,-7.22466567,0.00017797,2]
[312058920,1705588762692,-3413.72307024,0.00017797,2]
[312058921,1705588762807,-69.66781776,0.00017797,2]
[312058922,1705588769195,-490.0,0.00017797,2]
[312058923,1705588769381,-10.0,0.00017797,2]
[312058924,1705588797628,-255.73492984,0.00017797,2]
[312058925,1705588797901,-5.2190802,0.00017797,2]
[312058926,1705588818417,-154.98450155,0.00017796,3]
[312058927,1705588818442,-164.53558271,0.00017796,2]
[312058928,1705588818469,-29.18278409,0.00017797,2]
[312058929,1705588818541,-162.10088662,0.00017797,2]
[312058930,1705589004642,-154.98450155,0.00016025,3]
[312058931,1705589004671,-171.76596675,0.00017706,2]
[312058932,1705589004698,-11673.2495317,0.00017797,2]
[312058933,1705589004735,-12000.0,0.00017797,2]
[312058934,1705589004875,-12000.0,0.00017797,2]
[312058935,1705589005009,-12000.0,0.00017797,2]
[312058936,1705589005242,-10812.73058501,0.00017797,2]
[312058937,1705589015741,-12000.0,0.00017797,2]
[312058938,1705589016080,-3210.0058104,0.00017797,2]
[312058939,1705589025954,-154.98450155,0.00016017,3]
[312058940,1705589025982,-11845.01549845,0.00017797,2]
[312058941,1705589026131,-7842.79907843,0.00017797,2]
[312058942,1705589028109,155.04961588,0.00017797,2]
[312058943,1705589029487,-1082.67794699,0.00017797,2]
[312058944,1705589029727,-22.09546831,0.00017797,2]
[312058945,1705589029987,178.6090388,0.00017797,2]
[312058946,1705589031368,881.97343988,0.00017797,2]
[312058947,1705589031396,1082.67794699,0.00017797,2]
[312058948,1705589031881,-12000.0,0.00017797,2]
[312058949,1705589032115,-1245.35442353,0.00017797,2]
[312058950,1705589033093,239.11394633,0.00017797,2]
[312058951,1705589033198,157.67929276,0.00017797,2]
[312058952,1705589035179,875.01165605,0.00017797,2]
[312058953,1705589039125,-884.02199109,0.00017797,2]
[312058954,1705589039242,-18.04126512,0.00017797,2]
[312058955,1705589039634,155.2676003,0.00017797,2]
[312058956,1705589040199,166.70935578,0.00017797,2]
[312058957,1705589041065,154.98450155,0.00016017,3]
[312058958,1705589042250,-256.90906359,0.00017797,2]
[312058959,1705589042571,-5.24304211,0.00017797,2]
[312058960,1705589047334,-12000.0,0.00017797,2]
[312058961,1705589047434,-1711.08982792,0.00017797,2]
[312058962,1705589047460,-6675.56914534,0.00017797,2]
[312058963,1705589047579,3613.34102674,0.00017797,2]
[312058964,1705589047610,-12000.0,0.00017797,2]
[312058965,1705589047708,-4074.47355014,0.00017797,2]
[312058966,1705589049081,227.77045865,0.00017797,2]
[312058967,1705589053341,-12000.0,0.00017797,2]
[312058968,1705589053482,-8887.67394558,0.00017797,2]
[312058969,1705589054279,687.4903872,0.00017797,2]
[312058970,1705589055798,261.75482441,0.00017797,2]
[312058971,1705589057090,154.98450155,0.00016017,3]
[312058972,1705589061281,-1281.86799565,0.00017797,2]
[312058973,1705589061425,-26.16057134,0.00017797,2]
[312058974,1705589079029,-1661.70724881,0.00017797,2]
[312058975,1705589079251,-33.91239283,0.00017797,2]
[312058976,1705589189864,-460.93988114,0.00017796,2]
[312058977,1705589189971,-9.40693635,0.00017796,2]
[312058978,1705589194236,-154.98450155,0.00017797,3]
[312058979,1705589194266,-11845.01549845,0.00017797,2]
[312058980,1705589194455,-9042.65844713,0.00017797,2]
[312058981,1705589266716,-154.98450155,0.00017423,3]
[312058982,1705589266743,-11845.01549845,0.00017797,2]
[312058983,1705589266907,-9042.65844713,0.00017797,2]
[312059024,1705589431765,-154.98450155,0.00016016,3]
[312059026,1705589431774,-185.27753363,0.00017698,2]
[312059028,1705589431783,-2001.1665667,0.00017792,2]
[312059030,1705589431792,-7998.46086725,0.00017793,2]
[312059032,1705589431801,-20887.67394558,0.00017794,2]
[312059034,1705589431810,-470.34681749,0.00017796,2]
[312059036,1705589431820,-19603.02401703,0.00017797,2]
[312059038,1705589431829,-10293.9434922,0.00017797,2]
[312059040,1705589431838,-295.23238737,0.00017806,2]
[312059042,1705589431847,-303.74020335,0.00017806,2]
[312059044,1705589431856,-260.79058258,0.00017808,2]
[312059046,1705589431867,-1577.00246456,0.0001781,2]
[312059048,1705589431876,-500.0,0.00018797,2]
[312059050,1705589431886,-220.693763,0.00018934,2]
[312059052,1705589431895,-165.90071,0.00019178,2]
[312059064,1705589431993,-24900.0,0.00019361,2]
[312059066,1705589432004,-200.0,0.00019572,2]
[312059068,1705589432013,-500.0,0.00019797,2]
[312059070,1705589432022,-211.03608739,0.0002,2]
[312059071,1705589432032,-500.0,0.00020797,2]
[312059073,1705589432041,-280.0,0.0002153,7]
[312059075,1705589432050,-678.98839756,0.00021797,2]
[312059077,1705589432059,-3743.44064302,0.00021861,2]
[312059080,1705589432069,-1091.35673297,0.00021872,2]
[312059082,1705589432078,-686.24011788,0.00021873,2]
[312059083,1705589432087,-433.21650898,0.00021874,2]
[312059085,1705589432096,-166.666666,0.00021918,2]
[312059087,1705589432106,-293.23530462,0.00022,4]
[312059089,1705589432114,-154.98450155,0.00022,2]
[312059091,1705589432123,-166.666666,0.00022431,2]
[312059093,1705589432132,-166.666666,0.00022944,2]
[312059095,1705589432142,-166.666666,0.00023456,2]
[312059098,1705589432151,-391.0,0.00023682,7]
[312059099,1705589432160,-159.729791,0.00023704,2]
[312059102,1705589432170,-166.666666,0.00023969,2]
[312059104,1705589432179,-1830.62942806,0.00024,2]
[312059105,1705589432189,-4010.78536694,0.00024,2]
[312059107,1705589432198,-166.666666,0.00024482,2]
[312059110,1705589432207,-280.0,0.00024658,2]
[312059112,1705589432216,-497.89805688,0.0002495,5]
[312059113,1705589432225,-1045.45812768,0.00025,2]
[312059115,1705589432235,-4718.82684458,0.00025,2]
[312059117,1705589432245,-678.93201338,0.00025,2]
[312059119,1705589432255,-200.0,0.00026051,7]
[312059121,1705589432265,-348.0,0.00026051,7]
[312059123,1705589432274,-876.04744004,0.000264,2]
[312059125,1705589432284,-261.3528024,0.000274,2]
[312059127,1705589432293,-3214.7973618,0.000275,2]
[312059129,1705589432303,-632.802372,0.0002772,2]
[312059131,1705589432312,-305.46439516,0.00028,2]
[312059133,1705589432321,-290.00241025,0.00028,2]
[312059135,1705589432330,-238.31627781,0.00028,2]
[312059137,1705589432344,-200.0,0.00028656,15]
[312059139,1705589432354,-200.0,0.00028656,15]
[312059140,1705589432363,-368.0,0.00028656,15]
[312059141,1705589432372,-9311.97,0.0002899,3]
[312059142,1705589432382,-155.77486132,0.00029,2]
[312059143,1705589432393,-2455.73923901,0.00029,2]
[312059144,1705589432402,-620.6401186,0.00029106,2]
[312059145,1705589432411,-157.1252217,0.00029178,2]
[312059146,1705589432424,-167.89275327,0.00029999,2]
[312059147,1705589432433,-155.0309876,0.00029999,2]
[312059148,1705589432443,-156.78271178,0.00029999,2]
[312059149,1705589432452,-154.98450155,0.0003,2]
[312059150,1705589432462,-283.01176432,0.0003,3]
[312059151,1705589432472,-195.1690538,0.0003,4]
[312059152,1705589432482,-682.23213824,0.0003,3]
[312059153,1705589432491,-464.23133021,0.0003,2]
[312059154,1705589432501,-243.91959085,0.0003,4]
[312059155,1705589432510,-368.87856589,0.0003,6]
[312059156,1705589432519,-287.25958641,0.0003,4]
[312059157,1705589432529,-2491.60757104,0.0003,4]
[312059158,1705589432538,-687.89788967,0.0003,4]
[312059159,1705589432547,-431.47408337,0.0003,4]
[312059160,1705589432557,-1154.97437813,0.0003,2]
[312059161,1705589432566,-159.0,0.0003,2]
[312059162,1705589432575,-3174.10443609,0.00030031,4]
[312059163,1705589432584,-500.0,0.00030136,2]
[312059164,1705589432594,-163.993654,0.00030137,2]
[312059165,1705589432603,-685.968076,0.00030137,2]
[312059166,1705589432613,-500.0,0.00030273,2]
[312059167,1705589432622,-359.36461223,0.00030296,3]
[312059168,1705589432631,-13873.59276946,0.00030296,5]
[312059169,1705589432640,-621.18421044,0.0003031,2]
[312059170,1705589432649,-49349.78954225,0.00030336,5]
[312059171,1705589432659,-500.0,0.0003041,2]
[312059172,1705589432668,-500.0,0.00030547,2]
[312059173,1705589432677,-620.03200593,0.00030561,2]
[312059174,1705589432687,-482.24476677,0.00030644,2]
[312059175,1705589432696,-642.84321036,0.00030645,4]
[312059176,1705589432705,-15085.16915694,0.00030646,2]
[312059186,1705589438287,-10820.96343899,0.00030367,5]
[312059187,1705589438297,-15945.45,0.00030636,3]
[312059188,1705589438308,-260914.83084306,0.00030646,2]
[312059189,1705589438317,-191.0,0.0003066,30]
[312059190,1705589438326,-191.0,0.0003067,30]
[312059191,1705589438340,-191.0,0.0003068,30]
[312059192,1705589438349,-500.0,0.00030684,2]
[312059193,1705589438358,-320.55392425,0.00030744,10]
[312059194,1705589438367,-91960.05000285,0.00030746,4]
[312059195,1705589438378,-2107.37177409,0.00030747,4]
[312059196,1705589438387,-174.97506827,0.00030747,4]
[312059197,1705589438396,-14425.32400466,0.00030747,4]
[312059198,1705589438405,-36876.59949898,0.00030747,4]
[312059199,1705589438414,-500.0,0.00030821,2]
[312059200,1705589438424,-500.0,0.00030958,2]
[312059201,1705589438432,-685.968076,0.00030959,2]
[312059202,1705589438441,-500.0,0.00030999,2]
[312059203,1705589438450,-500.0,0.00030999,2]
[312059204,1705589438458,-500.0,0.00030999,2]
[312059205,1705589438467,-500.0,0.00030999,2]
[312059206,1705589438477,-500.0,0.00030999,2]
[312059207,1705589438487,-500.0,0.00030999,2]
[312059208,1705589438497,-500.0,0.00030999,2]
[312059209,1705589438508,-500.0,0.00030999,2]
[312059210,1705589438518,-500.0,0.00030999,2]
[312059211,1705589438527,-500.0,0.00030999,2]
[312059212,1705589438535,-500.0,0.00030999,2]
[312059213,1705589438544,-447.97616575,0.00030999,2]
[312059214,1705589438553,-500.0,0.00030999,2]
[312059215,1705589438563,-12243.87665029,0.00031,5]
[312059216,1705589438572,-238.04250494,0.00031,2]
[312059217,1705589438583,-97008.73081987,0.00031,4]
[312059218,1705589438593,-500.0,0.00031095,2]
[312059219,1705589438602,-163.993654,0.00031183,2]
[312059220,1705589438612,-500.0,0.00031232,2]
[312059221,1705589438622,-500.0,0.00031369,2]
[312059222,1705589438695,-500.0,0.00031506,2]
[312059223,1705589438719,-200.0,0.00031521,15]
[312059224,1705589438728,-200.0,0.00031521,15]
[312059225,1705589438737,-200.0,0.00031521,15]
[312059226,1705589438746,-200.0,0.00031521,15]
[312059227,1705589438757,-275.0,0.00031521,15]
[312059228,1705589438766,-265.0,0.000316,3]
[312059229,1705589438774,-500.0,0.00031643,2]
[312059230,1705589438784,-621.18421042,0.00031723,2]
[312059231,1705589438793,-500.0,0.0003178,2]
[312059232,1705589438803,-685.968076,0.00031781,2]
[312059233,1705589438812,-500.0,0.00031917,2]
[312059234,1705589438821,-219.77894514,0.00031957,2]
[312059235,1705589438830,-650.89335401,0.00032,4]
[312059236,1705589438839,-1400.0,0.00032,2]
[312059237,1705589438848,-500.0,0.00032054,2]
[312059238,1705589438858,-620.0016003,0.00032089,2]
[312059239,1705589438866,-509.62423541,0.00032191,2]
[312059240,1705589438875,-163.993654,0.00032229,2]
[312059241,1705589438885,-1273.45080855,0.00032458,2]
[312059242,1705589438894,-685.968076,0.00032603,2]
[312059243,1705589438903,-365.51661901,0.00032876,7]
[312059244,1705589438913,-950.0,0.00032876,2]
[312059245,1705589438922,-166.476911,0.00032947,2]
[312059246,1705589438931,-250.99344,0.00032947,2]
[312059247,1705589438941,-153.423555,0.00032947,2]
[312059248,1705589438950,-162.068596,0.00032947,2]
[312059249,1705589438959,-173.089381,0.00032947,2]
[312059250,1705589438969,-162.616475,0.00032947,2]
[312059251,1705589438978,-386.32476631,0.00033,2]
[312059252,1705589438989,-159.0,0.00033,2]
[312059253,1705589438998,-159.0,0.00033,2]
[312059254,1705589439007,-621.18421042,0.00033136,2]
[312059255,1705589439017,-950.0,0.0003315,2]
[312059256,1705589439026,-163.993654,0.00033275,2]
[312059257,1705589439035,-166.476911,0.00033359,2]
[312059258,1705589439044,-250.99344,0.00033359,2]
[312059259,1705589439053,-153.423555,0.00033359,2]
[312059260,1705589439062,-155.0,0.000334,2]
[312059261,1705589439071,-950.0,0.00033424,2]
[312059262,1705589439081,-685.968076,0.00033425,2]
[312059263,1705589439090,-950.0,0.00033698,2]
[312059264,1705589439099,-166.476911,0.0003377,2]
[312059265,1705589439108,-250.99344,0.0003377,2]
[312059266,1705589439117,-153.423555,0.0003377,2]
[312059267,1705589439127,-162.068596,0.0003377,2]
[312059268,1705589439135,-162.616475,0.0003377,2]
[312059269,1705589439145,-950.0,0.00033972,2]
[312059270,1705589439154,-1000.0,0.00034,7]
[312059271,1705589439163,-200.13788167,0.00034,2]
[312059272,1705589439172,-2000.0,0.00034029,2]
[312059273,1705589439182,-166.476911,0.00034182,2]
[312059274,1705589439191,-250.99344,0.00034182,2]
[312059275,1705589439200,-153.423555,0.00034182,2]
[312059276,1705589439210,-950.0,0.00034246,2]
[312059277,1705589439219,-685.968076,0.00034247,2]
[312059278,1705589439229,-163.993654,0.00034321,2]
[312059279,1705589439240,-10799.91264334,0.000345,7]